[Event "Marcel Invitational Chess-ch 2022"]
[Site "Dhaka"]
[Date "2022.04.26"]
[Round "8.1"]
[White "Ahmed, Shafiq"]
[Black "Mohammad Minhaz Uddin"]
[Result "0-1"]
[ECO "C42"]
[WhiteElo "2090"]
[BlackElo "2267"]
[Annotator "TA"]
[PlyCount "68"]
[EventDate "2022.04.18"]
[EventCountry "BAN"]
[SourceTitle "playchess.com"]
[Source "ChessBase"]
[SourceQuality "1"]
[TimeControl "5400+30"]

{[%evp 15,68,22,35,-37,-18,-24,16,0,0,0,10,-12,-9,-10,-17,-21,0,-81,-14,-43,-45,-59,0,-56,-33,-131,-127,-198,-215,-197,-208,-304,-308,-312,-300,-316,-305,-313,-310,-306,-306,-308,-295,-293,-236,-316,-311,-690,-678,-622,-610,-1943,-1883,-1557,-1498]} 1. e4 {[%emt 0:00:09]} e5 {[%emt 0:00:03]} 2. Nf3 {[%emt 0:00:06]} Nf6 {[%emt 0:00:03]} 3. Nxe5 {[%emt 0:00:09]} d6 {[%emt 0:00:01]} 4. Nf3 {[%emt 0:00:15]} Nxe4 {[%emt 0:00:02]} 5. Qe2 {[%emt 0:00:22]} Qe7 {[%emt 0:00:04]} 6. d3 {[%emt 0:00:19]} Nf6 {[%emt 0:00:06]} 7. Bg5 {[%emt 0:00:12]} Be6 {[%emt 0:00:18]} 8. Nc3 {[%emt 0:00:50]} h6 {[%emt 0:01:15]} 9. Bh4 {[%emt 0:00:52] C42: Petroff Defence: 3 Nxe5 and unusual White 3rd moves.} (9. Bxf6 $14 gxf6 10. d4) 9... g5 $15 {[%emt 0:01:31]} 10. Bg3 {[%emt 0:00:14]} Nh5 {[%emt 0:00:08]} 11. Nd4 {[%emt 0:01:14] The position is equal.} Nxg3 {[%emt 0:00:31]} 12. hxg3 {[%emt 0:00:03] [#]} Nc6 $146 {[%emt 0:09:06]} ({Predecessor:} 12... Bg7 13. Ncb5 a6 14. Nxe6 fxe6 15. Qh5+ Kd7 16. Nc3 Nc6 17. Qg6 Raf8 18. f3 d5 {0-1 (25) Cachero Ramirez,E-Blanco Fernandez,E Gijon 1999}) 13. Nxc6 {[%emt 0:06:56]} bxc6 {[%emt 0:00:03]} 14. O-O-O {[%emt 0:00:23]} Bg7 {[%emt 0:00:05]} 15. d4 {[%emt 0:00:27]} O-O {[%emt 0:02:39]} 16. f4 {[%emt 0:06:15]} (16. Qa6 $11 {remains equal.}) 16... g4 {[%emt 0:15:40]} (16... Rfe8 $1 $17) 17. Qe3 {[%emt 0:03:38][%cal Of4f5] Black must now prevent f5!} (17. Rh5 $5 {[%cal Rf4f5]} f5 18. Rh1 $11) 17... Rfe8 {[%emt 0:10:48]} 18. Bd3 {[%emt 0:04:15]} f5 {[%emt 0:08:25] Prevents Qe4.} (18... Qf6 $15) 19. Qg1 {[%emt 0:06:48]} ({Better is} 19. d5 $11 cxd5 20. Bb5) 19... Qf7 {[%emt 0:03:00]} 20. Qh2 {[%emt 0:01:39] Black keeps a firm grip on the game.} (20. Re1 $15) 20... Bxa2 $17 {[%emt 0:23:53]} 21. Bxf5 {[%emt 0:00:33]} Qxf5 $19 {[%emt 0:01:24]} 22. Nxa2 {[%emt 0:00:17]} Re2 {[%emt 0:11:20][%csl Ge2][%cal Rf5c2]} 23. Rd2 {[%emt 0:00:44]} (23. Rd3 $142 c5 24. Qh5 (24. Nc3 $2 Rxc2+ 25. Kxc2 c4 $19) 24... Qxh5 25. Rxh5) 23... Rxd2 {[%emt 0:00:21]} 24. Kxd2 {[%emt 0:00:03]} Qd5 {[%emt 0:00:08]} (24... Bxd4 25. Qxh6 Rb8 26. Rh5 $15) 25. Nb4 {[%emt 0:01:10]} Qxd4+ {[%emt 0:00:11]} 26. Nd3 {[%emt 0:00:09]} c5 $1 {[%emt 0:00:48]} (26... Re8 27. Qh5 Re4 28. Kc1 $11 (28. Kd1 c5 $17)) 27. c3 {[%emt 0:01:18]} Qd5 {[%emt 0:00:14]} 28. Qh5 {[%emt 0:04:12]} Qxg2+ {[%emt 0:00:09]} 29. Kc1 {[%emt 0:00:32]} Qf3 {[%emt 0:07:36]} (29... Qxg3 $2 30. Qd5+ Kh7 31. Qe4+ Kg8 32. Qxa8+ Kf7 33. Qd5+ Ke7 34. Qe4+ Kf6 35. Re1 $18) 30. Nf2 {[%emt 0:03:35] [#]} Qe3+ $1 {[%emt 0:01:06]} (30... Qxf2 31. Qd5+ Kh7 32. Qe4+ (32. Qxa8 Qe3+ 33. Kb1 Qd3+ 34. Ka2 Qc4+ 35. Ka1 Qa6+ 36. Kb1 Qd3+ 37. Ka2 Qc4+ 38. Kb1 d5 $11) 32... Kg8 33. Qxa8+ Bf8 34. Qd5+ (34. Qxa7 $2 Qe3+ 35. Kc2 Qe4+ 36. Kb3 Qxh1 $19) 34... Kh8 35. Qd3 $16) 31. Kd1 $2 {[%emt 0:00:10] [#]} (31. Kb1 Rb8 32. Nxg4) 31... Re8 $1 {[%emt 0:01:58] And now ...Qf3+ would win. Black is clearly winning.} ({Less strong is} 31... Qxf2 32. Qd5+ Kh7 33. Qe4+ Kg8 34. Qxa8+ Bf8 35. Re1 $14) 32. Qd5+ {[%emt 0:00:55]} Kh8 {[%emt 0:00:21]} 33. Qd2 {[%emt 0:08:59]} Qf3+ {[%emt 0:00:12]} 34. Kc1 {[%emt 0:03:24]} Re2 {[%emt 0:00:02] Weighted Error Value: White=0.72/Black=0.12 (very precise)} 0-1

[Event "Marcel Invitational Chess-ch 2022"]
[Site "Dhaka"]
[Date "2022.04.26"]
[Round "8.2"]
[White "Ahmed, Sheikh Nasir"]
[Black "abu, Hanif"]
[Result "1-0"]
[ECO "C00"]
[WhiteElo "2168"]
[BlackElo "2023"]
[Annotator "TA"]
[PlyCount "105"]
[EventDate "2022.04.18"]
[EventCountry "BAN"]
[SourceTitle "playchess.com"]
[Source "ChessBase"]
[SourceQuality "1"]
[TimeControl "5400+30"]

{[%evp 9,105,-2,-7,-8,6,9,31,27,31,14,17,10,47,21,35,0,0,0,32,0,15,-30,-23,-20,-19,-37,-36,-59,0,-19,25,0,74,0,19,12,54,0,67,58,117,24,36,35,28,27,35,34,38,20,91,72,96,93,125,114,115,114,110,87,106,97,104,89,116,104,132,101,115,136,137,125,135,73,114,94,316,293,547,546,530,508,507,483,484,452,929,910,877,850,5197,5824,2684,2428,29989,29990,29998,29999]} 1. e4 {[%emt 1:31:00]} e6 {[%emt 0:41:59]} 2. Qe2 {[%emt 0:00:00]} c6 {[%emt 0:00:11]} 3. Nf3 {[%emt 0:00:00]} d5 {[%emt 0:00:07]} 4. d3 {[%emt 0:00:00]} Nf6 {[%emt 0:00:13]} 5. e5 {[%emt 0:00:00]} Nfd7 {[%emt 0:00:09]} 6. g3 $1 {[%emt 0:00:00] C00: French: Unusual White 2nd moves.} b6 {[%emt 0:00:30]} 7. Bg2 {[%emt 0:00:00] [#]} Bb7 $146 {[%emt 0:00:02]} ({Predecessor:} 7... Ba6 8. O-O Qc7 9. Re1 h6 10. h4 Be7 11. h5 Nf8 12. c4 Nbd7 13. Nc3 Bb4 {1-0 (41) Fedorov,A (2618)-Mihet,V (2076) Eforie Nord 2010}) 8. O-O {[%emt 0:00:00] White is slightly better.} Be7 {[%emt 0:00:09]} 9. h4 {[%emt 0:00:00]} h6 {[%emt 0:00:36]} 10. Re1 {[%emt 0:00:00]} Na6 {[%emt 0:00:08]} 11. Nbd2 {[%emt 0:00:00]} Qc7 {[%emt 0:00:22]} 12. Nf1 {[%emt 0:00:00]} c5 {[%emt 0:00:55]} 13. c4 {[%emt 0:00:00]} Bc6 {[%emt 0:05:49]} 14. Bf4 {[%emt 0:00:00]} Qb7 {[%emt 0:00:32]} 15. a3 {[%emt 0:00:00]} Nc7 {[%emt 0:08:08]} 16. Bd2 {[%emt 0:00:00]} a5 {[%emt 0:00:19] Prevents b4.} 17. b3 {[%emt 0:00:00]} b5 {[%emt 0:04:27]} 18. Reb1 {[%emt 0:00:00]} Qa6 {[%emt 0:11:55]} (18... a4 $15) 19. Ne3 {[%emt 0:00:00]} Nb6 {[%emt 0:01:59]} 20. Rc1 {[%emt 0:00:00]} Qb7 {[%emt 0:04:58]} (20... a4 $11 21. b4 dxc4) 21. h5 {[%emt 0:00:00]} (21. cxb5 $16 Nxb5 22. a4) 21... a4 {[%emt 0:01:05]} 22. b4 {[%emt 0:00:00]} d4 {[%emt 0:01:05]} 23. Ng4 {[%emt 0:11:00]} (23. Nc2 $14) 23... bxc4 {[%emt 0:00:13]} (23... cxb4 $11 24. axb4 Rd8) 24. dxc4 $14 {[%emt 0:00:00]} Qc8 {[%emt 0:03:59]} ({Better is} 24... Rd8 $14) 25. bxc5 {[%emt 0:00:00]} (25. b5 $16 Bb7 26. Ne1) 25... Bxc5 $11 {[%emt 0:00:19]} 26. Bb4 {[%emt 0:00:00]} Na6 {[%emt 0:00:22]} (26... Bxb4 $2 27. axb4 Nd7 28. b5 $18 (28. Nxd4 Bxg2 29. Kxg2 Qb7+ 30. Qf3 Qxf3+ 31. Kxf3 O-O $18)) 27. Bxc5 {[%emt 0:00:00]} Nxc5 {[%emt 0:00:26]} 28. Nxd4 {[%emt 0:00:00]} Bxg2 {[%emt 0:01:02]} 29. Kxg2 {[%emt 0:00:00]} O-O {[%emt 0:02:04]} (29... Nb3 $11 30. Nxb3 axb3) 30. Rab1 $16 {[%emt 0:00:00]} Rb8 {[%emt 0:00:35]} 31. Qf3 {[%emt 0:00:00] Hoping for Nc6.} Qa6 {[%emt 0:01:04]} 32. Rb5 {[%emt 0:00:00]} Nbd7 {[%emt 0:01:11]} 33. Rcb1 {[%emt 0:00:00]} Rbc8 {[%emt 0:00:14] Inhibits Nc6.} 34. Kg1 {[%emt 0:00:00] &Bianco is much more active.} Kh8 {[%emt 0:00:41]} 35. Qe3 {[%emt 0:00:00]} Kh7 {[%emt 0:00:33]} 36. f4 {[%emt 0:00:00]} Rfe8 {[%emt 0:01:11]} 37. Nf2 {[%emt 0:00:00]} Qa8 {[%emt 0:00:29]} 38. Qc3 {[%emt 0:00:00]} Kg8 {[%emt 0:00:19]} 39. Ra5 {[%emt 0:00:13]} Rb8 {[%emt 0:00:58]} 40. Rbb5 {[%emt 0:00:58]} Rxb5 {[%emt 0:00:08]} 41. Rxb5 {[%emt 0:01:50]} (41. cxb5 $142 Qd5 42. Ra7) 41... Rd8 {[%emt 0:00:35]} 42. Qa5 {[%emt 0:01:44]} Qc8 $2 {[%emt 0:01:15] [#] Black cannot hold the game after this.} (42... Qxa5 $16 43. Rxa5 Rc8) 43. Nc6 $1 $18 {[%emt 0:01:26]} Qxc6 {[%emt 0:00:35]} (43... Re8 {might work better.}) 44. Qxd8+ {[%emt 0:00:03]} Kh7 {[%emt 0:00:03]} 45. Qe7 {[%emt 0:00:37]} Qf3 {[%emt 0:02:07]} 46. Rxc5 {[%emt 0:01:19]} Qxg3+ {[%emt 0:00:02]} 47. Kf1 {[%emt 0:00:10]} Qxa3 {[%emt 0:00:04] [#]} (47... Nxc5 $142 48. Qxc5 Qxf4) 48. Qxd7 $1 {[%emt 0:00:28] Intending Qd3+ and mate.} Qxc5 {[%emt 0:00:03]} 49. Qxa4 {[%emt 0:00:21]} g6 {[%emt 0:00:43]} 50. hxg6+ {[%emt 0:00:33]} Kxg6 {[%emt 0:00:39]} 51. Qc2+ {[%emt 0:00:11]} Kh5 {[%emt 0:01:09]} 52. Ne4 {[%emt 0:01:53]} Qc6 {[%emt 0:02:37]} 53. Nf6+ {[%emt 0:00:40] Weighted Error Value: White=0.16 (very precise) /Black=0.52} 1-0

[Event "Marcel Invitational Chess-ch 2022"]
[Site "Dhaka"]
[Date "2022.04.26"]
[Round "8.3"]
[White "Anata, Choudhury"]
[Black "Rahman, Syed Mahfuzur"]
[Result "1/2-1/2"]
[ECO "B33"]
[WhiteElo "2170"]
[BlackElo "2113"]
[Annotator "TA"]
[PlyCount "135"]
[EventDate "2022.04.18"]
[EventCountry "BAN"]
[SourceTitle "playchess.com"]
[Source "ChessBase"]
[SourceQuality "1"]
[TimeControl "5400+30"]

{[%evp 20,135,25,30,38,39,45,0,10,9,32,33,31,21,29,14,34,16,16,22,21,22,25,26,49,25,22,16,87,42,49,14,12,0,15,0,0,-6,0,0,6,0,0,0,0,0,48,42,47,0,0,14,6,21,18,-35,-26,-60,-35,-59,-52,-46,-58,-42,-54,-60,0,0,0,0,0,0,0,0,0,0,0,0,0,0,0,0,0,0,0,0,0,0,0,0,0,0,0,0,0,0,0,0,0,0,0,0,0,0,0,0,0,0,0,0,0,0,0,0,0,0,0,0]} 1. e4 {[%emt 0:00:12]} c5 {[%emt 0:00:19]} 2. Nf3 {[%emt 0:00:17]} Nc6 {[%emt 0:00:19]} 3. d4 {[%emt 0:00:10]} cxd4 {[%emt 0:00:17]} 4. Nxd4 {[%emt 0:00:09]} Nf6 {[%emt 0:00:02]} 5. Nc3 {[%emt 0:00:10]} e5 {[%emt 0:00:20]} 6. Ndb5 {[%emt 0:00:11]} d6 {[%emt 0:00:03]} 7. Nd5 {[%emt 0:00:16]} Nxd5 {[%emt 0:00:08]} 8. exd5 {[%emt 0:00:09]} Ne7 {[%emt 0:04:01]} 9. c4 {[%emt 0:00:09]} Ng6 {[%emt 0:04:08]} 10. Qa4 {[%emt 0:01:28]} Bd7 {[%emt 0:05:20]} 11. Qb4 {[%emt 0:00:15]} Qb8 {[%emt 0:04:14] B33: Sicilian: Pelikan and Sveshnikov Variations.} 12. h4 {[%emt 0:00:19]} a6 {[%emt 0:19:02]} 13. Nc3 {[%emt 0:00:27]} (13. h5 {seems wilder.} axb5 14. hxg6 Ra4 15. gxf7+ Kxf7 16. Qb3) 13... Be7 {[%emt 0:01:17]} 14. g3 {[%emt 0:03:13] [#]} O-O $146 {[%emt 0:01:01][%cal Oe5e4]} ({Predecessor:} 14... h5 15. Be2 f5 16. Be3 Bd8 17. c5 f4 18. Bd3 O-O 19. Bxg6 fxe3 20. fxe3 Bg4 21. cxd6 {0-1 (27) Herrera Ortiz,M (2250)-Reinderman,D (2410) Antwerp 1992}) 15. h5 {[%emt 0:01:22]} Nh8 {[%emt 0:00:14][%cal Bg6h8,Bh8f7,Bf7e5][%mdl 32]} 16. Be3 {[%emt 0:00:30]} f5 {[%emt 0:03:16]} 17. O-O-O {[%emt 0:00:25]} Nf7 {[%emt 0:12:30]} 18. Kb1 {[%emt 0:00:17]} e4 {[%emt 0:10:51]} 19. Be2 {[%emt 0:10:55]} Ne5 {[%emt 0:03:05]} 20. Na4 {[%emt 0:03:08] Strongly threatening Nb6.} Bxa4 {[%emt 0:01:21]} 21. Qxa4 {[%emt 0:00:09]} Qc7 {[%emt 0:00:32][%cal Ob7b5]} 22. Rc1 {[%emt 0:00:51]} (22. h6 $5 {[%cal Rh6g7]}) 22... b6 {[%emt 0:05:59]} 23. Qc2 {[%emt 0:21:00][%cal Og3g4]} Qb7 {[%emt 0:06:27]} (23... Rae8 $11 {keeps the balance.}) 24. Rhd1 {[%emt 0:10:45]} Rac8 {[%emt 0:01:58]} 25. Qd2 {[%emt 0:00:49]} Bf6 {[%emt 0:00:57]} 26. Qb4 {[%emt 0:00:57]} Qe7 {[%emt 0:02:48]} 27. Qd2 {[%emt 0:01:32]} (27. Bxb6 Rb8 28. Qb3 Nd7 $17) 27... Rb8 {[%emt 0:02:53]} 28. Bf4 {[%emt 0:08:38]} Rfc8 {[%emt 0:02:09]} 29. Qe3 {[%emt 0:01:02]} Rc5 {[%emt 0:01:14]} 30. g4 {[%emt 0:08:18]} Nxg4 {[%emt 0:00:45]} 31. Bxg4 {[%emt 0:00:20]} fxg4 {[%emt 0:00:01]} 32. Qg3 {[%emt 0:01:55][%csl LRd6,LRg4]} Rd8 {[%emt 0:00:11]} (32... e3 $11 {deserves consideration.} 33. Rc2 (33. Qxe3 b5 $11) (33. Bxe3 Qe4+ 34. Ka1 Be5 $17) 33... Qe4 34. Qxe3 Rxc4 35. Qxe4 Rxe4 36. Bxd6 Rbe8) 33. Be3 $14 {[%emt 0:00:53]} Rcc8 {[%emt 0:07:11]} 34. Bxb6 {[%emt 0:07:20]} Rb8 {[%emt 0:01:17]} 35. Bd4 {[%emt 0:00:14]} Bxd4 {[%emt 0:00:36]} 36. Rxd4 {[%emt 0:00:08]} Qf6 {[%emt 0:00:03]} 37. Qe3 {[%emt 0:03:43]} (37. Rd2 $11) 37... Re8 {[%emt 0:01:30]} 38. c5 {[%emt 0:02:52]} dxc5 {[%emt 0:00:11]} (38... Rxb2+ $5 39. Kxb2 dxc5 40. Rxc5 Qb6+ 41. Qb3 Qxc5 42. d6+ Kf8 $15) 39. Rxc5 {[%emt 0:00:03] [#]} Rxb2+ $1 {[%emt 0:00:48]} 40. Kxb2 {[%emt 0:00:15]} Qb6+ {[%emt 0:00:01]} 41. Qb3 {[%emt 0:00:40]} Qxc5 $15 {[%emt 0:00:01][%mdl 4096] Endgame KQR-KQR} 42. d6+ {[%emt 0:00:44]} Kh8 {[%emt 0:01:26]} (42... Kf8 $15 43. Qb4 Qxb4+ 44. Rxb4 g6) 43. Qb4 $11 {[%emt 0:03:05] Active counter play! The position is equal.} Qxb4+ {[%emt 0:00:34]} (43... Qxh5 $2 44. d7 Rd8 45. Qe7 Qb5+ 46. Rb4 Qe2+ 47. Ka3 Qf3+ 48. Rb3 $18) 44. Rxb4 {[%emt 0:00:09] KR-KR} Kg8 {[%emt 0:00:04]} 45. Kc3 {[%emt 0:02:47][%cal Ob4e4]} Kf7 {[%emt 0:00:18]} 46. Kd4 {[%emt 0:00:44]} Ke6 {[%emt 0:00:55]} 47. Rb6 {[%emt 0:00:09]} Rf8 {[%emt 0:00:39]} 48. Rxa6 {[%emt 0:05:19]} Rxf2 {[%emt 0:00:14] Threatens to win with ...Kf5.} 49. Ra7 {[%emt 0:00:39]} Kxd6 {[%emt 0:00:53]} 50. Rxg7 {[%emt 0:00:26]} Rxa2 {[%emt 0:00:03]} 51. Rxh7 {[%emt 0:00:23]} Ra4+ {[%emt 0:00:32]} 52. Ke3 {[%emt 0:00:13]} Ke5 {[%emt 0:00:01]} 53. Re7+ {[%emt 0:02:32]} Kf5 {[%emt 0:00:01] [#] White must now prevent ...Ra3+.} 54. h6 {[%emt 0:00:39]} Ra3+ {[%emt 0:01:03]} 55. Kf2 {[%emt 0:01:24]} Rh3 {[%emt 0:01:13]} 56. h7 {[%emt 0:00:05]} Kf4 {[%emt 0:00:28]} (56... e3+ $5 57. Ke2 Kg6 $11) 57. Rf7+ {[%emt 0:00:37]} Ke5 {[%emt 0:00:03]} 58. Re7+ {[%emt 0:00:58]} Kd5 {[%emt 0:00:27]} 59. Rd7+ {[%emt 0:00:29]} Ke6 {[%emt 0:00:34]} 60. Rg7 {[%emt 0:00:09]} Kf5 {[%emt 0:00:56]} 61. Rf7+ $1 {[%emt 0:00:07]} Kg5 {[%emt 0:00:42]} 62. Rg7+ {[%emt 0:00:17]} Kf5 {[%emt 0:00:09]} 63. Rf7+ {[%emt 0:00:07]} Kg6 {[%emt 0:00:38]} 64. Re7 {[%emt 0:00:09]} Rxh7 {[%emt 0:00:38]} 65. Rxe4 {[%emt 0:00:07]} Kf5 {[%emt 0:00:07]} 66. Re8 $1 {[%emt 0:00:07]} Rh2+ {[%emt 0:00:41]} 67. Kg3 {[%emt 0:00:07]} Rh3+ {[%emt 0:00:03]} 68. Kg2 {[%emt 0:05:32] Weighted Error Value: White=0.08 (flawless) /Black=0.07 (flawless)} 1/2-1/2

[Event "Marcel Invitational Chess-ch 2022"]
[Site "Dhaka"]
[Date "2022.04.26"]
[Round "8.5"]
[White "Hossain, Showkat Pollab"]
[Black "Islam, Khandaker Aminul"]
[Result "1-0"]
[ECO "C54"]
[WhiteElo "1979"]
[BlackElo "2153"]
[Annotator "TA"]
[PlyCount "193"]
[EventDate "2022.04.18"]
[EventCountry "BAN"]
[SourceTitle "playchess.com"]
[Source "ChessBase"]
[SourceQuality "1"]
[TimeControl "5400+30"]

{[%evp 11,193,8,11,11,10,0,7,0,13,-10,-10,-12,0,-12,0,0,-8,-14,0,0,3,2,12,4,10,6,7,4,8,0,8,0,13,0,4,0,0,0,7,0,0,0,41,41,59,4,0,0,0,0,0,0,0,0,0,-1,-14,-54,-21,-42,-10,-41,0,-19,-8,-60,-44,-56,-19,-63,-8,-33,0,-3,-20,0,0,0,0,0,0,0,0,0,0,0,0,0,0,0,0,0,10,10,47,0,26,0,10,10,74,47,192,201,195,171,184,149,220,207,225,4,9,0,223,0,201,0,218,195,265,223,213,0,481,450,580,543,718,720,703,675,990,904,29977,29978,29978,29979,29979,29973,29977,29976,29962,2719,1800,794,29972,29973,29962,29964,29974,29975,29976,29977,29977,29976,29976,29977,29976,2599,29980,29981,29984,29985,29985,29981,29981,29978,29978,29979,29981,29977,12827,4610,29979,29980,29982,29979,29980,29981,29981,29981,29986,29987]} 1. e4 {[%emt 0:00:08]} e5 {[%emt 0:00:03]} 2. Nf3 {[%emt 0:00:07]} Nc6 {[%emt 0:00:02]} 3. Bc4 {[%emt 0:00:11]} Bc5 {[%emt 0:00:03]} 4. c3 {[%emt 0:00:11]} Nf6 {[%emt 0:00:04]} 5. d3 {[%emt 0:00:10]} d6 {[%emt 0:00:09]} 6. h3 {[%emt 0:01:01]} h6 {[%emt 0:00:09]} 7. a4 {[%emt 0:00:19] C54: Giuoco Piano: 4 c3 Nf6, main lines with 5 d4 and 5 d3.} a5 {[%emt 0:00:11] Inhibits b4.} 8. Nbd2 {[%emt 0:01:52]} Be6 {[%emt 0:01:53] [#]} 9. Qb3 $146 {[%emt 0:02:29] The position is equal.} ({Predecessor:} 9. Bb5 O-O 10. Bxc6 bxc6 11. O-O Qd7 12. Nh2 Nh7 13. Ndf3 f5 14. exf5 Bxf5 15. d4 exd4 16. cxd4 {0-1 (54) Damborsky,P (1772)-Smrek,P (1831) Slovakia 2015}) 9... Qc8 {[%emt 0:00:20]} 10. Nf1 {[%emt 0:06:16]} Bxc4 {[%emt 0:00:12]} 11. Qxc4 {[%emt 0:00:08]} Qe6 {[%emt 0:01:14] Strongly threatening ...Qxc4.} 12. Ne3 {[%emt 0:07:17]} Bxe3 {[%emt 0:00:12]} 13. Qxe6+ {[%emt 0:00:10]} fxe6 {[%emt 0:00:02]} 14. Bxe3 {[%emt 0:03:48]} d5 {[%emt 0:01:30]} 15. exd5 {[%emt 0:03:21]} exd5 {[%emt 0:00:13]} 16. O-O {[%emt 0:06:14]} Nd7 {[%emt 0:09:03]} 17. d4 {[%emt 0:05:21]} e4 {[%emt 0:01:32]} 18. Nd2 {[%emt 0:00:33]} O-O-O {[%emt 0:04:12]} 19. Rae1 {[%emt 0:03:33]} Rde8 {[%emt 0:04:07]} 20. b3 {[%emt 0:03:54]} Re7 {[%emt 0:03:25]} 21. Rb1 {[%emt 0:03:46]} Nb6 {[%emt 0:02:04]} 22. Rfe1 {[%emt 0:06:42]} Rf8 {[%emt 0:02:45]} 23. Nf1 {[%emt 0:01:16][%cal Bd2f1,Bf1g3,Bg3e2,Be2c3][%mdl 32]} Ref7 {[%emt 0:03:56]} 24. Re2 {[%emt 0:00:25]} Nd8 {[%emt 0:01:24]} 25. Ng3 {[%emt 0:07:58]} Ne6 {[%emt 0:01:21]} 26. Rc2 {[%emt 0:01:43]} Kd7 {[%emt 0:01:00]} 27. c4 {[%emt 0:01:57]} c6 {[%emt 0:19:15]} 28. c5 {[%emt 0:05:13]} ({Better is} 28. cxd5 $14 Nxd5 29. Nxe4) 28... Na8 $11 {[%emt 0:01:45][%cal Bb6a8,Ba8c7,Bc7e8][%mdl 32]} 29. Ne2 {[%emt 0:01:40]} Nac7 {[%emt 0:00:37]} 30. b4 {[%emt 0:02:05]} axb4 {[%emt 0:00:11]} 31. Rxb4 {[%emt 0:00:02]} Ra8 {[%emt 0:08:10]} 32. Rcb2 {[%emt 0:01:40]} Ra7 {[%emt 0:04:20]} 33. g3 {[%emt 0:01:33]} Kc8 {[%emt 0:00:40]} 34. Nc3 {[%emt 0:04:20]} Ne8 {[%emt 0:00:54]} 35. Ra2 {[%emt 0:01:55]} Ra5 {[%emt 0:00:21]} 36. Ne2 {[%emt 0:00:37]} N8c7 {[%emt 0:01:19]} (36... g5 {is more complex.} 37. Kg2 h5 38. Ra1 N8g7) 37. Bd2 {[%emt 0:01:07][%cal Ob4b7]} Ra7 {[%emt 0:00:14]} 38. a5 {[%emt 0:02:14]} (38. h4 $11) 38... Rf3 {[%emt 0:00:33]} 39. Be3 {[%emt 0:04:07]} Nb5 {[%emt 0:01:01]} 40. Kg2 {[%emt 0:00:26]} Rf8 {[%emt 0:00:44]} (40... g5 $15) 41. h4 {[%emt 0:01:23]} Kd7 {[%emt 0:00:46]} 42. Ra1 {[%emt 0:01:23]} Rfa8 {[%emt 0:00:19]} 43. Rba4 {[%emt 0:00:17]} Ke7 {[%emt 0:02:20]} 44. Nf4 {[%emt 0:01:52]} Nbc7 {[%emt 0:04:03]} 45. Ng6+ {[%emt 0:00:22]} Ke8 {[%emt 0:01:08]} 46. Bd2 {[%emt 0:00:58]} Nb5 {[%emt 0:00:38]} 47. Be3 {[%emt 0:00:12]} Kd7 {[%emt 0:00:55]} 48. Nf4 {[%emt 0:00:42]} Nxf4+ {[%emt 0:00:28]} 49. Bxf4 {[%emt 0:00:26]} Ke6 {[%emt 0:00:08]} 50. Bd2 {[%emt 0:01:54]} Ra6 {[%emt 0:00:34]} 51. f3 {[%emt 0:00:33]} exf3+ {[%emt 0:00:09]} 52. Kxf3 {[%emt 0:00:09]} Rf8+ {[%emt 0:00:47]} 53. Kg2 {[%emt 0:00:54]} (53. Kg4 $1 $14) 53... Kd7 {[%emt 0:00:16]} 54. Re1 {[%emt 0:01:23]} Raa8 {[%emt 0:00:23]} 55. Bf4 {[%emt 0:00:58]} Rf7 {[%emt 0:00:22]} (55... h5 $11 {keeps the balance.}) 56. h5 $1 $16 {[%emt 0:01:07] &Bianco is more active.} Re7 {[%emt 0:03:35]} (56... Nc3 $14 57. Rb4 Nb5) 57. Rxe7+ $1 $18 {[%emt 0:00:21]} Kxe7 {[%emt 0:00:01][%mdl 4096] Endgame KRB-KRN} 58. Be5 {[%emt 0:00:18]} Kf7 {[%emt 0:00:02]} 59. Ra2 {[%emt 0:00:40]} Kg8 {[%emt 0:00:09]} (59... Nc3 $16 60. Ra3 Nb5) 60. Kh3 {[%emt 0:00:33]} Nc3 {[%emt 0:00:44]} 61. Rb2 $2 {[%emt 0:00:18]} ({White should try} 61. Ra3 $18) 61... Nb5 $11 {[%emt 0:00:18]} 62. Ra2 {[%emt 0:00:08] Kg4 is the strong threat.} Ra7 $2 {[%emt 0:02:51]} (62... Nc3 $1 $11 63. Ra3 (63. Rb2 Nb5 $16) 63... Ne4) 63. Bb8 $2 {[%emt 0:01:11]} (63. Kg4 $18) 63... Ra6 $2 {[%emt 0:00:36]} (63... Ra8 $11 {and Black has nothing to worry.} 64. Be5) 64. Be5 $2 {[%emt 0:00:05]} ({White must play} 64. Ra4 $1 $18) 64... Ra8 $2 {[%emt 0:01:27]} (64... Ra7 $1 $11) 65. Kh4 $18 {[%emt 0:00:45]} Kh7 {[%emt 0:00:29]} (65... Re8 {was necessary.}) 66. Rf2 {[%emt 0:01:25] And now Rf7 would win.} Kg8 {[%emt 0:00:15] Against Rf7} 67. Ra2 $2 {[%emt 0:01:07]} (67. Rf4 $1 $18 {[%cal Rf4g4]}) 67... Ra6 $2 {[%emt 0:04:36][%mdl 8192]} (67... Kh7 $11) 68. g4 {[%emt 0:00:33][%cal Bg3g4,Bg4g5][%mdl 32]} Ra7 {[%emt 0:03:55]} 69. Rg2 {[%emt 0:00:59] Hoping for g5.} Rxa5 {[%emt 0:01:45]} 70. g5 {[%emt 0:00:08] White threatens gxh6 and mate.} Kf8 {[%emt 0:01:26]} 71. Rf2+ {[%emt 0:00:48]} Kg8 {[%emt 0:00:07] [#]} 72. g6 $1 {[%emt 0:00:56]} Nc3 {[%emt 0:00:35]} 73. Rf7 {[%emt 0:01:01]} Ne4 {[%emt 0:00:02]} 74. Rxg7+ {[%emt 0:00:10]} Kf8 {[%emt 0:00:00]} 75. Rxb7 {[%emt 0:00:46]} Ra8 {[%emt 0:00:29]} 76. Rh7 {[%emt 0:00:32]} Ra1 {[%emt 0:00:08]} 77. Rf7+ {[%emt 0:01:10]} (77. Rd7 $142 Ke8 78. Rc7 Rg1 79. g7 Nf6 80. Rxc6 (80. Bxf6 Rg4+ 81. Kh3 Rg3+ 82. Kh2 Rg2+ 83. Kh1 Rg1+ 84. Kh2 Rg2+ 85. Kh3 Rg3+ 86. Kh4 Rg4+ 87. Kxg4 $11) 80... Rh1+ 81. Kg3 Nxh5+ 82. Kg2 Nxg7 83. Kxh1) 77... Ke8 {[%emt 0:00:17]} 78. Rf3 {[%emt 0:00:52]} (78. Rc7 $142 Rg1 79. g7) 78... Rh1+ {[%emt 0:00:27]} 79. Kg4 {[%emt 0:00:24]} Rg1+ {[%emt 0:00:22]} 80. Bg3 {[%emt 0:00:31]} Nxg3 {[%emt 0:00:59]} 81. Rxg3 {[%emt 0:00:12] KR-KR} Rd1 {[%emt 0:00:17]} 82. Kf5 {[%emt 0:00:23]} Kf8 {[%emt 0:00:03]} 83. Rf3 {[%emt 0:01:03]} Ke7 {[%emt 0:01:45]} 84. Re3+ {[%emt 0:00:15]} Kf8 {[%emt 0:00:06]} 85. Ke5 {[%emt 0:00:56]} (85. Re6 $142 Rxd4 86. Rxc6 Rc4 87. Kf6 Rf4+ 88. Ke5 Re4+ 89. Kxd5 Rh4 90. Rf6+ Kg8 91. Rf5) 85... Rh1 {[%emt 0:00:15]} 86. Rf3+ {[%emt 0:00:11]} Ke7 {[%emt 0:00:44]} 87. Rf7+ {[%emt 0:00:36]} Ke8 {[%emt 0:00:01]} 88. Ra7 {[%emt 0:00:43]} Kf8 {[%emt 0:01:03]} 89. Kf6 {[%emt 0:00:50][%cal Ra7a8]} Rf1+ {[%emt 0:00:04] [#]} 90. Ke6 $1 {[%emt 0:00:05]} Rh1 {[%emt 0:00:26]} 91. g7+ {[%emt 0:02:43]} Kg8 {[%emt 0:11:15]} 92. Kd6 {[%emt 0:00:00]} (92. Rc7 $142 Re1+ 93. Kd7) 92... Rh4 {[%emt 0:00:00]} 93. Kxc6 {[%emt 0:00:00] White mates.} Rxd4 {[%emt 0:00:00]} 94. Rd7 {[%emt 0:00:02]} Rh4 {[%emt 0:00:00]} 95. Rxd5 {[%emt 0:00:08]} Kxg7 {[%emt 0:00:00]} 96. Kd7 {[%emt 0:00:13]} Ra4 {[%emt 0:00:00]} 97. c6 {[%emt 0:00:07] Weighted Error Value: White=0.11 (very precise) /Black=0.18 (very precise)} 1-0